Cogmind - Beta 9.6 @@@ ROGUE MODE // 2020.08.20 @ 08:10:09 Player: Exp. Geonium Core Result: Destroyed by L-41 Fighter with Axe Performance ------------- Evolutions (3) 1500 Regions Visited (8) 1600 Robots Destroyed (64) 320 Value Destroyed (2581) 2581 Prototype IDs (5) 100 Alien Tech Used (0) 0 Bonus (2153) 2153 TOTAL SCORE: 8254 Bonus ------- High Alert Combat Kills 627 Follower Combat Kills 126 Entered Garrisons 400 Used RIF Installer 1000 Cogmind --------- Core Integrity 0/700 Matter 207/300 Energy 67/290 System Corruption 1% Temperature Cool (0) Movement Walking (270) Ox5 Location -7/Factory Parts ------- > --- POWER (1) -------- Reinforced Deuterium Engine > --- PROPULSION (4) --- Aluminum Leg > --- UTILITY (6) ------ Medium Storage Unit Large Storage Unit Advanced Sensor Array Improved Light Armor Plating > --- WEAPON (2) ------- Proton Missile Launcher Spear > --- INVENTORY (14) --- Improved Shield Generator Improved Shield Generator Relay Coupler [NC] (29) Relay Coupler [NC] (22) Relay Coupler [NC] (30) Relay Coupler [Brawler] (26) Relay Coupler [Behemoth] (12) Proton Missile Launcher Proton Missile Launcher Proton Missile Launcher Spear Peak State ------------ > --- POWER ------------ Reinforced Deuterium Engine > --- PROPULSION ------- Improved Treads Carbon-fiber Leg Carbon-fiber Leg Armored Wheel > --- UTILITY ---------- Improved Heat Sink Advanced Heat Sink Medium Storage Unit Advanced Terrain Scan Processor Core Shielding Improved Shield Generator > --- WEAPON ----------- Improved EM Shotgun Heavy Assault Rifle > --- INVENTORY -------- Reinforced Deuterium Engine Reinforced Deuterium Engine Wheel Relay Coupler [NC] Relay Coupler [NC] Relay Coupler [Hunter] Grenade Launcher Datajack [Rating: 38] Favorites ----------- Power Reinforced Deuterium Engine Engine Reinforced Deuterium Engine Propulsion Aluminum Leg Treads Light Treads Leg Aluminum Leg Wheel Wheel Utility Medium Storage Unit Device Improved Heat Sink Storage Medium Storage Unit Processor Advanced Terrain Scan Processor Hackware Relay Coupler [Hunter] Protection Hardened Light Armor Plating Weapon Heavy Assault Rifle Energy Gun Improved EM Shotgun Energy Cannon Advanced Beam Cannon Ballistic Gun Heavy Assault Rifle Launcher Grenade Launcher Piercing Weapon Spear Special Melee Weapon Datajack Build | -11 -10 -9 -9 -9 -9 -7 -7 -7 ------- Run | Scr Mat Mat Sto Gar Rec Fac Gar Fac Slots Evolved 6 | . . 2 . . . 4 . . Power . | . . . . . . . . . Propulsion 2 | . . 1 . . . 1 . . Utility 4 | . . 1 . . . 3 . . Weapon . | . . . . . . . . . Parts Attached 110 | 6 4 7 23 7 6 15 30 12 Power 10 | 1 . 2 3 1 . 1 1 1 Engine 10 | 1 . 2 3 1 . 1 1 1 Core . | . . . . . . . . . Reactor . | . . . . . . . . . Propulsion 30 | 2 1 1 5 1 5 3 11 1 Treads 15 | 1 . 1 4 1 4 3 1 . Leg 11 | . . . . . . . 10 1 Wheel 4 | 1 1 . 1 . 1 . . . Hover . | . . . . . . . . . Flight . | . . . . . . . . . Utility 24 | 1 . 2 4 . . 5 6 6 Device 8 | . . . 1 . . 3 2 2 Storage 4 | 1 . . 1 . . . . 2 Processor 2 | . . . . . . 1 1 . Hackware 3 | . . . . . . . 3 . Protection 7 | . . 2 2 . . 1 . 2 Artifact . | . . . . . . . . . Weapon 46 | 2 3 2 11 5 1 6 12 4 Energy Gun 19 | 2 1 2 6 1 . . 7 . Energy Cannon 4 | . . . 1 1 . 2 . . Ballistic Gun 9 | . 2 . 2 1 . 2 2 . Ballistic Cannon . | . . . . . . . . . Launcher 9 | . . . 2 2 . 1 2 2 Special Weapon . | . . . . . . . . . Impact Weapon . | . . . . . . . . . Slashing Weapon . | . . . . . . . . . Piercing Weapon 2 | . . . . . . . . 2 Special Melee Weapon 3 | . . . . . 1 1 1 . Unidentified Prototypes 5 | . . . 5 . . . . . Parts Lost 44 | . 2 1 4 5 . . 24 8 Power 1 | . . . . . . . . 1 Propulsion 17 | . . 1 1 1 . . 10 4 Utility 11 | . . . 1 2 . . 5 3 Weapon 15 | . 2 . 2 2 . . 9 . Highest Loss Streak 8 | . 1 1 2 5 . . 8 7 Average Slot Usage (%) 86 | . 84 97 98 91 73 76 84 90 Engine 9 | . 14 11 11 10 11 7 7 7 Treads 14 | . 14 21 21 18 18 23 7 . Leg 7 | . . . . . . . 15 29 Wheel 7 | . 14 11 10 11 11 7 2 . Device 9 | . . . 9 8 . 7 15 21 Storage 9 | . 14 11 11 11 11 7 7 10 Processor 2 | . . . . . . 3 7 6 Hackware 1 | . . . . . . . 4 1 Protection 5 | . . 20 11 8 . 4 2 3 Energy Gun 6 | . 17 11 11 10 4 . 6 . Energy Cannon 1 | . . . 3 7 . 4 . . Ballistic Gun 6 | . 10 11 7 2 11 8 3 . Piercing Weapon 1 | . . . . . . . . 7 Special Melee Weapon 1 | . . . . . 6 . . . Naked Turns . | . . . . . . . . . Heaviest Build 54 | 9 10 25 30 30 22 40 40 54 Greatest Support 69 | 20 20 10 40 40 46 69 69 45 Greatest Overweight (x) 3 | . . 2 2 2 2 3 3 2 Average Overweight (x) . | . . 1 1 1 1 1 . . Largest Inventory Capacity 14 | 6 6 6 8 8 8 8 8 14 Average Capacity 7 | 4 6 6 6 8 8 8 8 11 Most Carried 14 | 4 6 6 7 6 8 8 8 14 Average Carried 6 | 2 5 5 5 4 5 7 7 8 Final Capacity 14 | 6 6 6 8 8 8 8 8 14 Final Carried 11 | 4 6 6 6 3 8 8 6 11 Class Distribution -------------------- 50% | Scavenger-Mutant 35% | Mutant 11% | Commander-Mutant Dominant Class ---------------- Mutant | -10/Materials Mutant | -9/Materials Scavenger-Mutant | -9/Storage Mutant | -9/Garrison Commander-Mutant | -9/Recycling Scavenger-Mutant | -7/Factory Scavenger-Mutant | -7/Garrison Scavenger-Mutant | -7/Factory Resources | -11 -10 -9 -9 -9 -9 -7 -7 -7 ----------- Run | Scr Mat Mat Sto Gar Rec Fac Gar Fac Matter Collected 1488 | 242 69 88 310 60 44 257 381 37 Remotely . | . . . . . . . . . Salvage Created 2535 | . 60 185 806 129 . 376 932 47 Parts 143 | . 7 10 52 16 . 9 44 5 Haulers Intercepted 3 | . . . 3 . . . . . Recyclers Shooed 2 | . 1 . 1 . . . . . Parts Field Recycled . | . . . . . . . . . Retrieved Matter . | . . . . . . . . . Parts Self-Destructed . | . . . . . . . . . Prevented . | . . . . . . . . . Kills | -11 -10 -9 -9 -9 -9 -7 -7 -7 ------- Run | Scr Mat Mat Sto Gar Rec Fac Gar Fac Combat Hostiles Destroyed 59 | . 3 6 15 6 . 6 22 1 Guns 43 | . 3 6 14 2 . 1 17 . Cannons 6 | . . . 1 . . 5 . . AOE 10 | . . . . 4 . . 5 1 Classes Destroyed 8 | . 2 2 2 1 . 1 . . Worker 1 | . 1 . . . . . . . Builder 1 | . . . 1 . . . . . Hauler 3 | . . . 3 . . . . . Swarmer 16 | . 3 3 3 4 . . 3 . Grunt 32 | . . 2 7 . . 3 19 1 Duelist 1 | . . . . 1 . . . . Sentry 8 | . . 1 5 1 . 1 . . Hunter 2 | . . . . . . 2 . . Best Kill Streak 5 | . 3 3 5 4 . 4 5 1 Combat Bots Only 5 | . 2 3 4 4 . 4 5 1 Max Kills in Single Turn 4 | . 1 1 1 4 . 1 1 1 Gunslinging . | . . . . . . . . . Exploded 4 | . . . . 4 . . 1 1 Melee . | . . . . . . . . . Uniques/NPCs Destroyed . | . . . . . . . . . Combat | -11 -10 -9 -9 -9 -9 -7 -7 -7 -------- Run | Scr Mat Mat Sto Gar Rec Fac Gar Fac Damage Taken 5807 | . 368 441 899 486 . 425 2494 694 Core 934 | . 63 47 64 59 . 41 505 155 Absorbed by Shields 191 | . . . . . . 38 112 41 Core Remaining (%) 77 | 100 74 . . . 57 . . . Volleys Fired 210 | . 22 18 56 5 . 19 84 6 Largest 2 | . 2 2 2 2 . 2 2 1 Hottest 130 | . 80 76 124 86 . 92 130 39 Shots Fired 365 | . 38 36 111 9 . 38 127 6 Gun 314 | . 38 36 93 6 . 20 121 . Cannon 36 | . . . 17 . . 17 2 . Launcher 15 | . . . 1 3 . 1 4 6 Special . | . . . . . . . . . Kinetic 155 | . 21 18 37 2 . 20 57 . Thermal 144 | . 17 18 69 2 . . 38 . Explosive 9 | . . . 1 3 . 1 4 . Electromagnetic 57 | . . . 4 2 . 17 28 6 Robot Hit Streak 40 | . 3 11 40 15 . 18 19 5 Robot Miss Streak 5 | . 5 4 4 . . 2 3 2 Penetration Max . | . . . . . . . . . Secondary Targets 2 | . . . 1 . . . 1 . Max Gunslinging Chain 1 | . . . 1 . . . 1 . Shots Hit Robots 266 | . 15 21 75 8 16 30 96 5 Core Hits 137 | . 6 11 34 10 . 14 58 4 Critical Hits 4 | . . 1 1 . . . 2 . Critical Kills 2 | . . . . . . . 2 . Critical Parts Destroyed 1 | . . 1 . . . . . . Melee Attacks 23 | . . . . . 16 . 2 5 Impact . | . . . . . . . . . Slashing . | . . . . . . . . . Piercing 5 | . . . . . . . . 5 Sneak Attacks 14 | . . . . . 14 . . . Combat Hostiles . | . . . . . . . . . Follow-up Attacks . | . . . . . . . . . Damage Inflicted 4702 | . 150 271 1098 291 . 635 2041 216 Guns 3076 | . 150 271 975 108 . 222 1350 . Cannons 594 | . . . 123 . . 413 58 . Explosions 1032 | . . . . 183 . . 633 216 Melee . | . . . . . . . . . Ramming . | . . . . . . . . . Kinetic 1404 | . 36 76 372 34 . 222 664 . Thermal 1559 | . 114 195 659 36 . . 527 28 Explosive 618 | . . . . 183 . . 435 . Electromagnetic 1121 | . . . 67 38 . 413 415 188 Impact . | . . . . . . . . . Slashing . | . . . . . . . . . Piercing . | . . . . . . . . . Highest Corruption 1 | . . . . . . . . 1 Average Corruption 1 | . . . . . . . . 1 Corruption Purged . | . . . . . . . . . Overload Shots . | . . . . . . . . . Overflow Damage 53 | . . . 1 . . 13 . 39 Projectiles 14 | . . . 1 . . 13 . . Explosions 39 | . . . . . . . . 39 Melee . | . . . . . . . . . Knockbacks . | . . . . . . . . . Impact . | . . . . . . . . . Kinetic . | . . . . . . . . . Secondary . | . . . . . . . . . Self-Inflicted Damage 253 | . . . 27 26 . . 56 144 Shots 9 | . . . 1 1 . . 1 6 Rammed . | . . . . . . . . . Targets Rammed . | . . . . . . . . . Kicked . | . . . . . . . . . Crushed . | . . . . . . . . . Highest Temperature 356 | . 160 356 172 . . 90 210 6 Average Temperature 94 | . 65 148 58 . . 27 75 6 Received Heat Transfer 1831 | . . 174 267 81 . 148 1056 105 Effects 1 | . . 1 . . . . . . Damage (minor) 1 | . . 1 . . . . . . Siege Activations . | . . . . . . . . . Robots Corrupted . | . . . . . . . . . Combat Hostiles . | . . . . . . . . . Parts Fried 5 | . . . 1 1 . 2 1 . Impact Corruptions . | . . . . . . . . . Robots Melted . | . . . . . . . . . Combat Hostiles . | . . . . . . . . . Parts Melted 5 | . 1 2 2 . . . . . Heat Transferred 3457 | . 310 518 1517 74 . . 988 50 Parts Sabotaged . | . . . . . . . . . Parts Stolen . | . . . . . . . . . Parts Stripped . | . . . . . . . . . Power Chain Reactions 3 | . . . . . . . 2 1 Missiles Intercepted . | . . . . . . . . . Alert | -11 -10 -9 -9 -9 -9 -7 -7 -7 ------- Run | Scr Mat Mat Sto Gar Rec Fac Gar Fac Peak Influence 989 | . 80 222 470 428 348 989 988 526 Average Influence 457 | . 16 106 302 332 161 916 837 458 Maximum Alert Level 3 | . . 1 2 2 1 3 3 2 Low Security (%) 25 | 100 100 91 22 . 49 . . . Level 1 26 | . . 8 49 94 50 . . 27 Level 2 19 | . . . 28 5 . . 25 72 Level 3 28 | . . . . . . 100 74 . Level 4 . | . . . . . . . . . Level 5 . | . . . . . . . . . High Security . | . . . . . . . . . Max Security . | . . . . . . . . . Squads Dispatched 5 | . . 1 1 . . 3 . . Investigation 1 | . . 1 . . . . . . Extermination . | . . . . . . . . . Reinforcement 3 | . . . 1 . . 2 . . Assault . | . . . . . . . . . Garrison 1 | . . . . . . 1 . . Intercept . | . . . . . . . . . Construction Impeded . | . . . . . . . . . Haulers Reinforced 1 | . . . . . . 1 . . Stealth | -11 -10 -9 -9 -9 -9 -7 -7 -7 --------- Run | Scr Mat Mat Sto Gar Rec Fac Gar Fac Distress Signals 2 | . 1 . 1 . . . . . Communications Jammed . | . . . . . . . . . Distress Signals . | . . . . . . . . . Times Spotted 118 | . 8 11 22 8 21 13 32 3 Peak Tracking Total 11 | . 6 6 5 4 6 3 11 3 Tactical Retreats 14 | . . . 2 2 . . 9 1 Traps | -11 -10 -9 -9 -9 -9 -7 -7 -7 ------- Run | Scr Mat Mat Sto Gar Rec Fac Gar Fac Traps Triggered 11 | . 1 1 1 3 . . 3 2 Indirectly . | . . . . . . . . . Trap Hack Attempts 6 | . . . . . . 6 . . Triggered . | . . . . . . . . . Disarmed . | . . . . . . . . . Reprogrammed . | . . . . . . . . . Reused . | . . . . . . . . . Traps Extracted . | . . . . . . . . . Installed . | . . . . . . . . . Triggered 2 | . . . . . . . 2 . Machines | -11 -10 -9 -9 -9 -9 -7 -7 -7 ---------- Run | Scr Mat Mat Sto Gar Rec Fac Gar Fac Machines Disabled 3 | . . . 1 . . . 2 . Max in Single Turn 1 | . . . 1 . . . 1 . Garrison Relay 2 | . . . . . . . 2 . Machines Sabotaged . | . . . . . . . . . Garrisons Compromised . | . . . . . . . . . Overloaded Fab Kills . | . . . . . . . . . Fab Network Shutdowns . | . . . . . . . . . Hacking | -11 -10 -9 -9 -9 -9 -7 -7 -7 --------- Run | Scr Mat Mat Sto Gar Rec Fac Gar Fac Machines Accessed 12 | . 1 2 1 . 6 2 . . Terminals 10 | . 1 2 . . 6 1 . . Fabricators . | . . . . . . . . . Repair Stations . | . . . . . . . . . Recycling Units . | . . . . . . . . . Scanalyzers . | . . . . . . . . . Garrison Access 2 | . . . 1 . . 1 . . Total Hacks 33 | . 2 5 2 . 21 3 . . Successful 15 | . 1 2 1 . 9 2 . . Failed 18 | . 1 3 1 . 12 1 . . Catastrophic 3 | . . 1 . . 1 1 . . Database Lockouts . | . . . . . . . . . Manual 31 | . 2 5 1 . 21 2 . . Terminals 30 | . 2 5 . . 21 2 . . Fabricators . | . . . . . . . . . Repair Stations . | . . . . . . . . . Recycling Units . | . . . . . . . . . Scanalyzers . | . . . . . . . . . Garrison Access 3 | . . . 2 . . 1 . . Terminal Hacks 4 | . . . . . 4 . . . Terminal Index 2 | . . . . . 2 . . . Unreport Threat 2 | . . . . . 2 . . . Fabricator Hacks . | . . . . . . . . . Repair Station Hacks . | . . . . . . . . . Recycling Unit Hacks . | . . . . . . . . . Scanalyzer . | . . . . . . . . . Garrison Access Hacks 2 | . . . 1 . . 1 . . Unlock Access 2 | . . . 1 . . 1 . . Unauthorized Hacks 9 | . 1 2 . . 5 1 . . Terminals 9 | . 1 2 . . 5 1 . . Botnet 9 | . 1 2 . . 5 1 . . Fabricators . | . . . . . . . . . Repair Stations . | . . . . . . . . . Recycling Units . | . . . . . . . . . Scanalyzers . | . . . . . . . . . Garrison Access . | . . . . . . . . . Data Cores Recovered . | . . . . . . . . . Used . | . . . . . . . . . Hacking Detections 11 | . 1 2 1 . 6 1 . . Full Trace Events . | . . . . . . . . . Feedback Events . | . . . . . . . . . Feedback Blocked . | . . . . . . . . . Robot Schematics Acquired . | . . . . . . . . . Robots Built . | . . . . . . . . . Matter . | . . . . . . . . . Time . | . . . . . . . . . Total Robot Build Rating . | . . . . . . . . . Part Schematics Acquired . | . . . . . . . . . Parts Built . | . . . . . . . . . Matter . | . . . . . . . . . Time . | . . . . . . . . . Total Part Build Rating . | . . . . . . . . . Parts Repaired . | . . . . . . . . . Time . | . . . . . . . . . Parts Recycled . | . . . . . . . . . Recycled Matter . | . . . . . . . . . Retrieved Matter . | . . . . . . . . . Retrieved Components . | . . . . . . . . . Parts Scanalyzed . | . . . . . . . . . Part Schematics Acquired . | . . . . . . . . . Parts Damaged . | . . . . . . . . . Bothacking | -11 -10 -9 -9 -9 -9 -7 -7 -7 ------------ Run | Scr Mat Mat Sto Gar Rec Fac Gar Fac Used RIF Installer 2 | . . . . 1 . . 1 . Alert ID Control 1 | . . . . . . . 1 . Robots Hacked 1 | . . . . . . . 1 . Non-combat . | . . . . . . . . . Combat 1 | . . . . . . . 1 . Robot Hacks Applied 1 | . . . . . . . 1 . formatsys_high 1 | . . . . . . . 1 . Relay Couplers Released 8 | . . . . . . . 8 . Machine Destruction 8 | . . . . . . . 8 . Attached 3 | . . . . . . . 3 . Robots Rewired 9 | . . . . . 9 . . . Allies Hacked . | . . . . . . . . . Hacks Repelled . | . . . . . . . . . Allies | -11 -10 -9 -9 -9 -9 -7 -7 -7 -------- Run | Scr Mat Mat Sto Gar Rec Fac Gar Fac Total Allies 10 | . . . . . 9 . 1 . Largest Group 9 | . . . . . 9 8 1 . Highest-Rated Group 130 | . . . . . 130 109 21 . Highest-Rated Ally 24 | . . . . . 24 24 21 . Total Orders 2 | . . . . . 1 1 . . GOTO 2 | . . . . . 1 1 . . Ally Attacks 93 | . . . . . 57 28 8 . Total Damage 1010 | . . . . . 462 388 160 . Kills 17 | . . . . . 13 3 1 . Allies Corrupted . | . . . . . . . . . Allies Melted . | . . . . . . . . . Intel | -11 -10 -9 -9 -9 -9 -7 -7 -7 ------- Run | Scr Mat Mat Sto Gar Rec Fac Gar Fac Robot Analysis Total . | . . . . . . . . . Derelict Logs Recovered . | . . . . . . . . . Drone Launches . | . . . . . . . . . Drone Recoveries . | . . . . . . . . . Exploration | -11 -10 -9 -9 -9 -9 -7 -7 -7 ------------- Run | Scr Mat Mat Sto Gar Rec Fac Gar Fac Turns Passed 4054 | 87 243 311 502 375 603 456 922 555 Spaces Moved 2342 | 47 165 194 230 238 402 276 484 306 Core 5 | 5 . . . . . . . . Treads 491 | 40 41 . 41 127 65 109 68 . Legs 617 | . . . . . . . 311 306 Wheels 1229 | 2 124 194 189 111 337 167 105 . Hover . | . . . . . . . . . Flight . | . . . . . . . . . Fastest Speed 50 | 50 80 80 90 90 90 100 110 120 Average Speed 120 | 145 108 96 113 133 108 128 128 126 Slowest Speed 180 | 160 160 100 180 180 160 160 180 180 Overloaded Moves . | . . . . . . . . . Propulsion Burnouts . | . . . . . . . . . Robots Hopped . | . . . . . . . . . Cave-ins Triggered . | . . . . . . . . . Exploration Rate (%) 36 | 6 29 23 47 51 86 9 66 12 Regions Visited 8 Branch Regions 2 Pre-discovered Areas . | . . . . . . . . . Known Exits Taken 2 | . . . 1 . . 1 . . Unknown Exits Taken 4 | 1 1 1 . . 1 . . . Scrap Searched . | . . . . . . . . . Spaces Dug 9 | . . . . . . 5 . 4 Terrain Destroyed 36 | . . . 3 14 . 5 10 4 Melee 4 | . . . . . . . . 4 Projectile . | . . . . . . . . . AOE 32 | . . . 3 14 . 5 10 . Actions | -11 -10 -9 -9 -9 -9 -7 -7 -7 --------- Run | Scr Mat Mat Sto Gar Rec Fac Gar Fac Total 3188 | 63 194 285 365 283 550 337 648 463 Wait 362 | 7 . 61 31 31 89 14 13 116 Move 2334 | 46 164 193 230 236 401 275 483 306 Hop . | . . . . . . . . . Pick Up 45 | 4 3 1 7 1 4 3 12 10 Fast Attach 47 | 6 . 3 7 . 2 6 16 7 Attach 19 | . 2 . 3 3 . 1 6 4 Detach 4 | . . . 2 . . . . 2 Swap 44 | . 2 4 13 4 4 8 8 1 Drop 47 | . 1 5 16 1 3 5 9 7 Fire 210 | . 22 18 56 5 . 19 84 6 Melee 22 | . . . . . 16 . 2 4 Ram . | . . . . . . . . . Kick . | . . . . . . . . . Crush . | . . . . . . . . . Escape Stasis 16 | . . . . 2 . . 14 . Rewire 32 | . . . . . 31 . 1 . Trap 6 | . . . . . . 6 . . Miscellaneous . | . . . . . . . . . Route ------- -11/Scrapyard -10/Materials -9/Materials -9/Storage -9/Garrison (discovered 3 exits: *Rec x3) -9/Recycling -7/Factory -7/Garrison (discovered 2 exits: [*Fac x2]) -7/Factory History --------- Turn | Location | Event 20 | -11/Scrapyard | Discovered new exit (range 15) 88 | -11/Scrapyard | Entered Materials 313 | -10/Materials | Build established: Mutant 317 | -10/Materials | Discovered new exit (range 14) 331 | -10/Materials | Entered another Materials area 331 | -9/Materials | Evolved 2 slots: Propulsion x1, Utility x1 588 | -9/Materials | Discovered new exit (range 13) 642 | -9/Materials | Entered Storage 1144 | -9/Storage | Identified exit to Garrison 1144 | -9/Storage | Entered Garrison 1170 | -9/Garrison | Triggered checkpoint 1228 | -9/Garrison | Discovered new exit (range 12) 1354 | -9/Garrison | Triggered checkpoint 1402 | -9/Garrison | Spotted B-75 Beast 1406 | -9/Garrison | Discovered new exit (range 11) 1467 | -9/Garrison | Lost 5 parts (1n2u2w) 1480 | -9/Garrison | Triggered checkpoint 1491 | -9/Garrison | Discovered new exit (range 13) 1514 | -9/Garrison | Installed Relay Interface Framework 1519 | -9/Garrison | Entered Recycling 1583 | -9/Recycling | Spotter reported a threat 1633 | -9/Recycling | Spotter reported a threat 1637 | -9/Recycling | Spotter reported a threat 1649 | -9/Recycling | Spotter reported a threat 1649 | -9/Recycling | Spotter reported a threat 1667 | -9/Recycling | Spotter reported a threat 1677 | -9/Recycling | Spotter reported a threat 1680 | -9/Recycling | Spotter reported a threat 1690 | -9/Recycling | Spotter reported a threat 1716 | -9/Recycling | Spotter reported a threat 1719 | -9/Recycling | Spotter reported a threat 1725 | -9/Recycling | Spotter reported a threat 1730 | -9/Recycling | Spotter reported a threat 1751 | -9/Recycling | Spotter reported a threat 1759 | -9/Recycling | Spotter reported a threat 1760 | -9/Recycling | Spotter reported a threat 1781 | -9/Recycling | Spotter reported a threat 1798 | -9/Recycling | Spotter reported a threat 1799 | -9/Recycling | Spotter reported a threat 1804 | -9/Recycling | Spotter reported a threat 1806 | -9/Recycling | Spotter reported a threat 1807 | -9/Recycling | Spotter reported a threat 1813 | -9/Recycling | Spotter reported a threat 1906 | -9/Recycling | Spotter reported a threat 1906 | -9/Recycling | Spotter reported a threat 1908 | -9/Recycling | Spotter reported a threat 1909 | -9/Recycling | Spotter reported a threat 1939 | -9/Recycling | Spotter reported a threat 1960 | -9/Recycling | Spotter reported a threat 1992 | -9/Recycling | Spotter reported a threat 1992 | -9/Recycling | Spotter reported a threat 1992 | -9/Recycling | Spotter reported a threat 2001 | -9/Recycling | Discovered new exit (range 16) 2013 | -9/Recycling | Spotter reported a threat 2045 | -9/Recycling | Spotter reported a threat 2045 | -9/Recycling | Spotter reported a threat 2045 | -9/Recycling | Spotter reported a threat 2067 | -9/Recycling | Build established: Commander-Mutant 2122 | -9/Recycling | Entered Factory 2122 | -7/Factory | Accompanied by 8 allies 2122 | -7/Factory | Evolved 4 slots: Propulsion x1, Utility x3 2524 | -7/Factory | Garrison activated, responded to threat 2553 | -7/Factory | Build established: Scavenger-Mutant 2572 | -7/Factory | Identified exit to Garrison 2578 | -7/Factory | Entered Garrison 2620 | -7/Garrison | Triggered checkpoint 2664 | -7/Garrison | Garrison Relay disabled 2750 | -7/Garrison | Triggered checkpoint 2958 | -7/Garrison | Triggered checkpoint 3005 | -7/Garrison | Lost 6 parts (2n2u2w) 3049 | -7/Garrison | Core integrity fell below 50% 3122 | -7/Garrison | Lost 8 parts (4n1u3w) 3217 | -7/Garrison | Discovered new exit (range 8) 3242 | -7/Garrison | Triggered checkpoint 3261 | -7/Garrison | Garrison Relay disabled 3368 | -7/Garrison | Triggered checkpoint 3385 | -7/Garrison | Lost 4 parts (1n1u2w) 3406 | -7/Garrison | Discovered new exit (range 14) 3432 | -7/Garrison | Expanded RIF knowledge: Alert ID Control 3460 | -7/Garrison | Triggered checkpoint 3500 | -7/Garrison | Entered Factory 4019 | -7/Factory | Core integrity fell below 20% 4055 | -7/Factory | Destroyed by L-41 Fighter with Axe Last Messages --------------- 03984_ Acquired Imp. Shield Generator. 04014_ Triggered Ambush Trap. 04014_ L-41 Fighter emerges from a hatch in the floor. 04014_ G-47 Trooper emerges from a hatch in the floor. 04018_ Aluminum Leg destroyed. 04018_ Destroyed Aluminum Leg. 04018_ G-47 Trooper destroyed. 04018_ Chain reaction triggered in Lgt. Nuclear Core. 04018_ Aluminum Leg destroyed. 04018_ Destroyed Aluminum Leg. 04023_ Acquired 37 matter. 04025_ Imp. Shield Generator destroyed. 04026_ Acquired Aluminum Leg. 04027_ Targeting Computer destroyed. 04027_ Imp. Heat Sink destroyed. 04036_ Proton Missile Launcher severed. 04050_ Door malfunctions. 04052_ Carbon-fiber Leg destroyed. 04054_ Aluminum Leg destroyed. 04054_ Destroyed Aluminum Leg. Map ----- +----------------------------------------------------+ | ???????????????# """" """" # #???????? | | ???????????????# """" """" + #???????? | | ???????????????# """" """" # #???????? | | ???????????????# # #???????? | | ???????????????# # #???????? | | ???????????????# ###### #?####### | | ???????????????# ! #????# #?#! | | ???????????????# #????# #?# " | | ???????????????########+##/##????# #?# " | | ??????????????????????# ??????# #?# " | | ??????????????????????# ??????# #?# " | | ??????????????????????# ####### ### | | ??????????????????????# ####+## | | ??????????????????????# | | ??????????????????? | | ???????????????????? ] | | ???????????????????? ] | | ????????????????????? | | ?????????????????????###### | | ??????????????????????????# | | ??????????????????????????# | | ??????????????????????????# ############# | | ??????????????????????????# #???# # | | ??????????????????????????# #???# # | | ?????????????????####+##### #???# + | | ??????????????# @l #???# # | | ??????????????# #######/####### # | | ??????????????# ???????# # !! # | | ???????????????????????# ] # ! # | | ???????????????????????# # " " ###### | | ???????????????????????# # " " #????? | | ???????????????????????+ # " " #????? | | ???????????????????????# ! # " " #????? | | ???????????????????????# = # " " #????? | | ???????????????????????# [ ! " " " #????? | | ???????????????????????# # " " #????? | | ???????????????????????# ! # " " #????? | | ???????????????????????# # " " #????? | | ???????????????????????# # #????? | | ???????????????????????######################????? | | ?????????????????????????????????????????????????? | | ?????????????????????????????????????????????????? | | | | | | | | | | | | | | | | | +----------------------------------------------------+ Best States ------------- Heat Dissipation 67 Energy Generation 16 Energy Capacity 290 Matter Stores 300 Matter Capacity 300 Sight Range 16 Robot Scan Range 16 Terrain Scan Density 210 Armor Coverage 300 Core Shielding 20 Evasion (%) 44 Targeting Accuracy 5 Recoil Reduction 3 Item Schematics ----------------- None Robot Schematics ------------------ None Fabricated ------------ Nothing Alien Tech Used ----------------- None Achievements -------------- None Challenges ------------ None Game ------ Seed WeaponSurgePerforator Manual? 0 Play Time 00:48:51 Cumulative 30.4 hours Start 2020.08.19 @ 18:17:51 End 2020.08.20 @ 08:10:09 Sessions 3 Manual Loads 0 Difficulty Rogue Special Mode None Game No. 49 Rogue 49 Adventurer 0 Explorer 0 Win Type - Total 1 Types 1/0/0/0/0/0/0 Lore% 32 Gallery% 41 Achievement% 36 Wizard Run 0 Options --------- ASCII 0 Keyboard 0 Movement Mouse Keybinds 0 Fullscreen 1 Font 18/Smallcaps Map View 76x50 Tactical HUD 1 Map Filters NONE Filters NONE Steam 1 RUN: 61ccb06e-f6a1-4bb7-b505-b777a8ecfb20